fUSD/lending_fUSD_20240513
["ID","MTS","AMOUNT","RATE_DAILY","PERIOD"]
[326939941,1715623839059,-230.13862277,0.000129,2]
[326939942,1715623839074,-230.13862277,0.000129,2]
[326939944,1715623839084,-230.13862277,0.000129,2]
[326939946,1715623839093,-230.13862277,0.000129,2]
[326939948,1715623839103,-230.13862277,0.000129,2]
[326939950,1715623839112,-500.0,0.0001297,2]
[326939952,1715623839122,-298.94708887,0.00012979,2]
[326939954,1715623839132,-151.01,0.0001299,2]
[326939956,1715623839142,-151.01,0.0001299,2]
[326939958,1715623839152,-151.01,0.0001299,2]
[326939960,1715623839162,-15958.944082,0.00012991,2]
[326939962,1715623839172,-12018.4442134,0.00012991,2]
[326939964,1715623839181,-8077.9443449,0.00012991,2]
[326939966,1715623839191,-4137.4444764,0.00012991,2]
[326939968,1715623839200,-196.9446078,0.00012991,2]
[326939970,1715623839210,-151.9870703,0.00012991,2]
[326939972,1715623839220,-151.9870703,0.00012991,2]
[326939974,1715623839230,-151.9870703,0.00012991,2]
[326939975,1715623839240,-151.9870703,0.00012991,2]
[326939976,1715623839249,-151.9870703,0.00012991,2]
[326939977,1715623839259,-1025.9149878,0.00012996,2]
[326939978,1715623839269,-155.0,0.00012996,2]
[326939979,1715623839278,-185.77716048,0.00012996,2]
[326939980,1715623839288,-5113.27167962,0.00012996,2]
[326939981,1715623839297,-890.90790075,0.00012997,2]
[326939982,1715623839306,-177.5004176,0.00012997,2]
[326939983,1715623839318,-500.0,0.00012997,2]
[326939984,1715623839327,-194.41053146,0.00012997,2]
[326939985,1715623839336,-583.33,0.00012997,2]
[326939986,1715623839346,-583.33,0.00012997,2]
[326939987,1715623839355,-583.33,0.00012997,2]
[326939988,1715623839364,-95522.02645962,0.00012998,2]
[326939989,1715623839377,-2174.20621326,0.00012998,2]
[326940003,1715623840756,-2935.29712348,0.00012998,2]
[326940010,1715623843458,-925.86,0.00012998,2]
[326940024,1715623843679,-59103.30629648,0.00012998,2]
[326940025,1715623843755,-359868.19252665,0.00012998,2]
[326940026,1715623844147,-230.13862277,0.000129,2]
[326940029,1715623844157,-6434.77007724,0.00012998,2]
[326940047,1715623846720,-44810.89583093,0.00012998,2]
[326940049,1715623846733,-7700.90349088,0.00012998,2]
[326940051,1715623846744,-3181.64328,0.00012998,2]
[326940053,1715623846755,-51481.82108441,0.00012998,2]
[326940055,1715623846766,-695.5063196,0.00012998,2]
[326940058,1715623846778,-618.9,0.00012998,2]
[326940060,1715623846793,-735.7941996,0.00012998,2]
[326940063,1715623846804,-253.61500044,0.00012998,2]
[326940468,1715623916314,600.0,9.749e-05,2]
[326940470,1715624104525,16000.0,0.0003,120]
[326940471,1715624206509,652.82,0.00011699,2]
[326940472,1715624397318,-254.67877427,0.0001172,2]
[326940473,1715624397338,-155.0,0.00011721,2]
[326940474,1715624397359,-150.0,0.00011723,2]
[326940475,1715624397381,-5020.32122573,0.00011724,2]
[326940478,1715624711436,1250.0,0.00011,2]
[326940479,1715624751689,254.67877427,0.00011704,2]
[326940480,1715624835760,302.32252036,0.00011705,2]
[326940482,1715624909904,3656.455,0.00011607,2]
[326940488,1715624939937,1274.0,0.0003,120]
[326940489,1715624943204,155.0,0.00011705,2]
[326940497,1715625004927,8369.0,0.0003,120]
[326940503,1715625034448,-150.0,0.00011706,2]
[326940505,1715625034458,-9090.0,0.00011707,2]
[326940506,1715625034470,-284.1080006,0.00011707,2]
[326940507,1715625034482,-1619.7919994,0.00011707,2]
[326940508,1715625034491,-434.88,0.00011733,2]
[326940509,1715625034501,-250.0,0.00011733,2]
[326940510,1715625034513,-176.21,0.00011754,2]
[326940511,1715625034523,-1000.0,0.00011818,2]
[326940512,1715625034534,-157.04,0.00011991,2]
[326940513,1715625034543,-157.04,0.00012,2]
[326940514,1715625034552,-157.04,0.00012008,2]
[326940515,1715625034568,-157.04,0.00012017,2]
[326940516,1715625034578,-299.99,0.00012017,2]
[326940517,1715625034587,-157.04,0.00012025,2]
[326940518,1715625034597,-499.99,0.00012025,2]
[326940519,1715625034607,-157.04,0.00012034,2]
[326940520,1715625034616,-157.04,0.00012042,2]
[326940521,1715625034625,-157.04,0.00012051,2]
[326940522,1715625034634,-155.0,0.00012356,2]
[326940523,1715625034644,-175.095977,0.00012357,2]
[326940524,1715625034653,-267.146698,0.00012357,2]
[326940525,1715625034662,-166.966687,0.00012357,2]
[326940526,1715625034672,-267.146698,0.00012511,2]
[326940527,1715625034682,-166.966687,0.00012563,2]
[326940528,1715625034691,-420.36,0.000126,2]
[326940529,1715625034700,-150.0,0.000126,2]
[326940530,1715625034710,-150.0,0.000126,2]
[326940531,1715625034720,-163.31,0.000126,2]
[326940532,1715625034730,-523.56,0.000126,2]
[326940533,1715625034739,-351.48,0.000126,2]
[326940534,1715625034749,-415.14,0.000126,2]
[326940535,1715625034759,-150.0,0.000126,2]
[326940537,1715625034768,-150.0,0.000126,2]
[326940539,1715625034777,-150.0,0.000126,2]
[326940541,1715625034787,-150.0,0.000126,2]
[326940543,1715625034796,-150.0,0.000126,2]
[326940545,1715625034805,-868.86,0.000126,2]
[326940547,1715625034819,-420.36,0.000126,2]
[326940549,1715625034829,-523.56,0.000126,2]
[326940551,1715625034838,-150.0,0.000126,2]
[326940553,1715625034848,-150.0,0.000126,2]
[326940555,1715625034857,-163.31,0.000126,2]
[326940557,1715625034870,-351.48,0.000126,2]
[326940559,1715625034879,-150.0,0.000126,2]
[326940561,1715625034888,-150.56,0.000126,2]
[326940563,1715625034897,-415.14,0.000126,2]
[326940565,1715625034906,-150.0,0.000126,2]
[326940567,1715625034918,-868.86,0.000126,2]
[326940569,1715625034927,-420.36,0.000126,2]
[326940571,1715625034937,-150.0,0.000126,2]
[326940573,1715625034946,-150.0,0.000126,2]
[326940575,1715625034956,-150.0,0.000126,2]
[326940577,1715625034965,-150.0,0.000126,2]
[326940579,1715625034974,-163.31,0.000126,2]
[326940581,1715625034983,-150.0,0.000126,2]
[326940582,1715625034991,-868.14,0.000126,2]
[326940585,1715625035001,-150.0,0.000126,2]
[326940586,1715625035010,-351.48,0.000126,2]
[326940588,1715625035019,-523.56,0.000126,2]
[326940590,1715625035028,-150.0,0.000126,2]
[326940592,1715625035038,-413.67,0.000126,2]
[326940594,1715625035047,-150.0,0.000126,2]
[326940596,1715625035056,-351.48,0.000126,2]
[326940598,1715625035069,-150.0,0.000126,2]
[326940599,1715625035078,-523.56,0.000126,2]
[326940600,1715625035087,-150.0,0.000126,2]
[326940601,1715625035097,-150.0,0.000126,2]
[326940602,1715625035106,-420.36,0.000126,2]
[326940603,1715625035115,-162.64,0.000126,2]
[326940604,1715625035125,-523.56,0.000126,2]
[326940605,1715625035134,-351.48,0.000126,2]
[326940606,1715625035143,-150.0,0.000126,2]
[326940607,1715625035153,-150.0,0.000126,2]
[326940608,1715625035162,-420.36,0.000126,2]
[326940609,1715625035177,-150.0,0.000126,2]
[326940610,1715625035188,-350.94,0.000126,2]
[326940611,1715625035199,-721.78,0.000126,2]
[326940612,1715625035210,-523.56,0.000126,2]
[326940613,1715625035222,-523.56,0.000126,2]
[326940614,1715625035233,-351.39,0.000126,2]
[326940615,1715625035245,-150.0,0.000126,2]
[326940616,1715625035256,-150.0,0.000126,2]
[326940617,1715625035267,-523.56,0.000126,2]
[326940618,1715625035277,-150.0,0.000126,2]
[326940619,1715625035287,-500.0,0.00012602,2]
[326940620,1715625035296,-500.0,0.00012602,2]
[326940621,1715625035306,-2007.0517663,0.00012603,2]
[326940622,1715625035323,-1491.9886912,0.00012603,2]
[326940623,1715625035334,-267.146698,0.00012666,2]
[326940624,1715625035345,-1560.32144644,0.00012672,2]
[326940625,1715625035355,-1007.23610233,0.00012738,2]
[326940626,1715625035366,-1189.41277457,0.00012738,2]
[326940627,1715625035377,-470.4090219,0.00012767,2]
[326940628,1715625035387,-80.56958599,0.00012768,2]
[326940629,1715625035401,-230.43041401,0.00012768,2]
[326940630,1715625035411,-1965.72209379,0.00012768,2]
[326940631,1715625035425,-3782.27790621,0.00012768,2]
[326940632,1715625035435,-895.0,0.00012768,2]
[326940633,1715625035446,-166.966687,0.00012769,2]
[326940634,1715625035456,-1000.0,0.00012812,2]
[326940635,1715625035467,-173.12300679,0.0001282,2]
[326940636,1715625035482,-94.02369121,0.0001282,2]
[326940637,1715625035493,-518.91974879,0.0001287,2]
[326940638,1715625035506,-1199.33836121,0.0001287,2]
[326940639,1715625035518,-210.0,0.00012877,2]
[326940640,1715625035529,-200.0,0.00012896,2]
[326940641,1715625035540,-1000.0,0.00012896,2]
[326940642,1715625035551,-500.0,0.00012896,2]
[326940643,1715625035563,-1279.4754,0.00012898,2]
[326940644,1715625035572,-2185.4694,0.00012898,2]
[326940645,1715625035582,-4238.2775,0.00012899,2]
[326940646,1715625035592,-3595.5663,0.00012899,2]
[326940647,1715625035603,-195.87309804,0.00012899,2]
[326940648,1715625035614,-1087.54526994,0.00012899,2]
[326940649,1715625035625,-196.71913628,0.00012899,2]
[326940650,1715625035637,-351.49960383,0.00012899,2]
[326940651,1715625035648,-364.43592659,0.00012899,2]
[326940652,1715625035659,-351.49960377,0.00012899,2]
[326940653,1715625035670,-351.49960377,0.00012899,2]
[326940654,1715625035680,-351.49960377,0.00012899,2]
[326940655,1715625035691,-351.49960377,0.00012899,2]
[326940656,1715625035701,-351.49960377,0.00012899,2]
[326940657,1715625035712,-351.49960377,0.000129,2]
[326940658,1715625035722,-351.49960377,0.000129,2]
[326940659,1715625035732,-351.49960377,0.000129,2]
[326940660,1715625035741,-351.49960377,0.000129,2]
[326940661,1715625035751,-351.49960377,0.000129,2]
[326940662,1715625035763,-230.13862277,0.000129,2]
[326940663,1715625035774,-337.70375578,0.000129,2]
[326940664,1715625035784,-351.49960377,0.000129,2]
[326940665,1715625035794,-190.35446174,0.000129,2]
[326940666,1715625035805,-267.146698,0.00012975,2]
[326940667,1715625035819,-166.966687,0.00012975,2]
[326940668,1715625035830,-378.71,0.00012989,2]
[326940669,1715625035841,-378.71,0.00012989,2]
[326940670,1715625035852,-378.71,0.00012989,2]
[326940671,1715625035869,-378.71,0.00012989,2]
[326940672,1715625035880,-378.71,0.00012989,2]
[326940673,1715625035890,-378.71,0.00012989,2]
[326940674,1715625035903,-378.71,0.00012989,2]
[326940675,1715625035914,-378.71,0.00012989,2]
[326940676,1715625035925,-378.71,0.00012989,2]
[326940677,1715625035938,-378.71,0.00012989,2]
[326940678,1715625035949,-437.16031515,0.00012989,2]
[326940679,1715625035960,-437.16031515,0.00012989,2]
[326940680,1715625035971,-151.0,0.0001299,2]
[326940681,1715625035983,-151.0,0.0001299,2]
[326940682,1715625035992,-151.0,0.0001299,2]
[326940683,1715625036002,-151.0,0.0001299,2]
[326940684,1715625036013,-151.0,0.0001299,2]
[326940685,1715625036023,-151.0,0.0001299,2]
[326940686,1715625036033,-151.0,0.0001299,2]
[326940687,1715625036043,-151.0,0.0001299,2]
[326940688,1715625036054,-151.0,0.0001299,2]
[326940689,1715625036065,-151.0,0.0001299,2]
[326940690,1715625036076,-151.0,0.0001299,2]
[326940691,1715625036087,-151.0,0.0001299,2]
[326940692,1715625036098,-151.0,0.0001299,2]
[326940693,1715625036110,-151.0,0.0001299,2]
[326940694,1715625036121,-151.0,0.0001299,2]
[326940695,1715625036131,-151.0,0.0001299,2]
[326940696,1715625036142,-151.0,0.0001299,2]
[326940697,1715625036154,-151.0,0.0001299,2]
[326940698,1715625036165,-151.0,0.0001299,2]
[326940699,1715625036175,-151.0,0.0001299,2]
[326940700,1715625036186,-151.0,0.0001299,2]
[326940701,1715625036196,-151.0,0.0001299,2]
[326940702,1715625036207,-151.0,0.0001299,2]
[326940703,1715625036217,-151.0,0.0001299,2]
[326940704,1715625036228,-151.0,0.0001299,2]
[326940705,1715625036239,-151.0,0.0001299,2]
[326940706,1715625036249,-437.16031515,0.0001299,2]
[326940707,1715625036260,-3726.1045483,0.00012991,2]
[326940708,1715625036272,-3453.0841773,0.00012991,2]
[326940709,1715625036283,-3180.0638063,0.00012991,2]
[326940710,1715625036293,-2907.0434353,0.00012991,2]
[326940711,1715625036303,-2634.0230642,0.00012991,2]
[326940712,1715625036313,-334.37155481,0.00012996,2]
[326940713,1715625036323,-3999.1249193,0.00012996,2]
[326940714,1715625036334,-310.39552389,0.00012997,2]
[326940715,1715625036344,-2796.89901218,0.00012997,2]
[326940716,1715625036354,-764.10684653,0.00012997,2]
[326940717,1715625036363,-488.01922742,0.00012997,2]
[326940718,1715625036374,-622.58613624,0.00012997,2]
[326940719,1715625036384,-782.13638794,0.00012997,2]
[326940720,1715625036394,-3279.04154518,0.00012997,2]
[326940721,1715625036404,-267.89721336,0.00012997,2]
[326940722,1715625036415,-155.15471794,0.00012997,2]
[326940723,1715625036425,-1489.18469227,0.00012997,2]
[326940724,1715625036436,-155.0,0.00012997,2]
[326940725,1715625036446,-788.18220101,0.00012997,2]
[326940726,1715625036456,-157.50965258,0.00012997,2]
[326940727,1715625036468,-361.83080087,0.00012997,2]
[326940728,1715625036479,-1062.35823973,0.00012997,2]
[326940729,1715625036489,-301.49031396,0.00012997,2]
[326940730,1715625036510,-51442.0624284,0.00012998,2]
[326940731,1715625036523,-186.16673785,0.00012998,2]
[326940732,1715625036535,-1778.31663513,0.00012998,2]
[326940733,1715625036547,-161.35639647,0.00012998,2]
[326940734,1715625036560,-573.30653953,0.00012998,7]
[326940735,1715625036573,-7206.1044977,0.00012998,2]
[326940736,1715625036583,-1376.42653566,0.00012998,2]
[326940737,1715625036594,-300.51737616,0.00012998,2]
[326940738,1715625036606,-500.0,0.00012998,2]
[326940739,1715625036618,-500.0,0.00012998,2]
[326940740,1715625036628,-226.74,0.00012998,2]
[326940741,1715625036640,-500.0,0.00012998,2]
[326940742,1715625036650,-500.0,0.00012998,2]
[326940743,1715625036662,-1192.97,0.00012998,2]
[326940744,1715625036673,-1192.97,0.00012998,2]
[326940745,1715625036685,-1192.97,0.00012998,2]
[326940746,1715625036696,-1192.97,0.00012998,2]
[326940747,1715625036706,-1192.97,0.00012998,2]
[326940748,1715625036717,-1192.97,0.00012998,2]
[326940749,1715625036728,-1192.97,0.00012998,2]
[326940750,1715625036739,-1192.97,0.00012998,2]
[326940751,1715625036751,-543.0,0.00012999,2]
[326940752,1715625036763,-752607.9673069,0.00012999,2]
[326940753,1715625036974,-6566.03609594,0.00012999,2]
[326940754,1715625036987,-7289.9674728,0.00012999,2]
[326940755,1715625036999,-33381.81367591,0.00012999,2]
[326940756,1715625037012,-22714.8706778,0.00012999,2]
[326940757,1715625037024,-34507.64936098,0.00012999,2]
[326940758,1715625037036,-596.64313207,0.00012999,2]
[326940770,1715625038461,-204.29141458,0.00012012,2]
[326940771,1715625038472,-1033.18096647,0.00012768,2]
[326940772,1715625038485,-755.81903353,0.00012768,2]
[326940773,1715625038495,-330.74123378,0.00012768,2]
[326940775,1715625038508,-896.25876622,0.00012768,2]
[326940778,1715625038520,-2203.35537052,0.00012999,2]
[326940780,1715625038533,-9408.5410683,0.00012999,2]
[326940793,1715625038713,-300.32,0.00012999,2]
[326940794,1715625038726,-2831.60374502,0.00012999,2]
[326940795,1715625038739,-1474.3866235,0.00012999,2]
[326940796,1715625038752,-2612.1416303,0.00012999,2]
[326940797,1715625038765,-47225.1742303,0.00012999,2]
[326940798,1715625038777,-17368.77394707,0.00012999,2]
[326940799,1715625038790,-53088.78257424,0.00012999,2]
[326940800,1715625038803,-529.12011047,0.00012999,2]
[326940802,1715625038959,-195.73863075,0.000129,2]
[326940804,1715625038970,-40801.33454909,0.00012999,2]
[326940806,1715625038983,-600.5,0.00012999,2]
[326940825,1715625040792,-360.68756511,0.00012739,2]
[326940826,1715625040805,-104.87684644,0.00012739,2]
[326940827,1715625040816,-16996.77398941,0.00012999,2]
[326940828,1715625041143,-95109.55189005,0.00012999,2]
[326940829,1715625041162,-7338.449576,0.00012999,2]
[326940830,1715625041173,-2059.94570024,0.00012999,2]
[326940831,1715625041185,-3557.86121742,0.00012999,2]
[326940832,1715625041198,-6757.96750055,0.00012999,2]
[326940833,1715625041209,-32793.82785512,0.00012999,2]
[326940834,1715625041221,-1617.592005,0.00012999,2]
[326940835,1715625041233,-1363.68834929,0.00012999,2]
[326940836,1715625041245,-455.64,0.00012999,2]
[326940870,1715625043791,-320.038,0.00012768,2]
[326940871,1715625043802,-10211.967505,0.00012999,2]
[326940872,1715625043814,-397.00005046,0.00012999,2]
[326940873,1715625043828,-595955.74221004,0.00012999,2]
[326940874,1715625043837,-1192.97,0.00012999,2]
[326940875,1715625043847,-1192.97,0.00012999,2]
[326940876,1715625043859,-1192.97,0.00012999,2]
[326940877,1715625043871,-1192.97,0.00012999,2]
[326940878,1715625043881,-1192.97,0.00012999,2]
[326940879,1715625043891,-1192.97,0.00012999,2]
[326940880,1715625043902,-1192.97,0.00012999,2]
[326940881,1715625043913,-1192.97,0.00012999,2]
[326940882,1715625043925,-1192.97,0.00012999,2]
[326940883,1715625043935,-1192.97,0.00012999,2]
[326940884,1715625043948,-1192.97,0.00012999,2]
[326940885,1715625043958,-1192.97,0.00012999,2]
[326940886,1715625043968,-1192.97,0.00012999,2]
[326940887,1715625043978,-1192.97,0.00012999,2]
[326940888,1715625043988,-1192.97,0.00012999,2]
[326940889,1715625043998,-1193.11260191,0.00012999,2]
[326940890,1715625044009,-649470.67081254,0.00013,2]
[326940891,1715625044018,-454307.02264047,0.00013,2]
[326940892,1715625044030,-311389.57279657,0.00013,2]
[326940893,1715625044049,-1194.58828135,0.00013,2]
[326940894,1715625044078,-1383.80611967,0.00013,2]
[326940895,1715625044090,-34510.49291905,0.00013,2]
[326940896,1715625044099,-261.00400123,0.00013,2]
[326940904,1715625046677,-261.2470483,0.00013,2]
[326940905,1715625046730,-2208.88047165,0.00013,2]
[326940906,1715625046941,-251.3115,0.00013,2]
[326940907,1715625046952,-546.38011727,0.00013,2]
[326940908,1715625046964,-734.05,0.00013,2]
[326940909,1715625047151,-1566.925,0.00013,2]
[326940911,1715625381689,288.29,0.00010959,2]
[326940912,1715625420358,670.98560202,0.00012,30]
[326940913,1715625435360,547255.63295586,0.00010959,2]
[326940914,1715625453346,172555.61912731,0.00010959,2]
[326940915,1715625460185,1377.02368436,0.00010959,2]
[326940916,1715625478371,472.30179542,0.00010959,2]
[326940920,1715625812613,1966.620949,0.00011695,2]
[326940937,1715626211226,1250.0,0.00011,2]
[326940940,1715626234591,-155.0,0.00011772,2]
[326940944,1715626234601,-468.75,0.00011773,2]
[326940948,1715626234612,-23890.0,0.00011773,2]
[326940951,1715626234621,-1000.0,0.00011802,2]
[326940954,1715626234631,-499.74209631,0.00011846,2]
[326940958,1715626234640,-250.0,0.00011848,2]
[326940960,1715626234649,-151.78,0.00011857,2]
[326940962,1715626234658,-2100.77,0.00011858,2]
[326940964,1715626234668,-250.0,0.00011876,2]
[326940966,1715626234677,-150.0,0.00012329,2]
[326940969,1715626234686,-8210.19402854,0.00012347,7]
[326940973,1715626234696,-436.44,0.00012347,2]
[326940975,1715626234705,-189.51787,0.00012357,2]
[326940980,1715626234715,-3278.717563,0.00012357,2]
[326940982,1715626234725,-1087.966087,0.00012357,2]
[326940985,1715626234735,-155.6198,0.00012357,2]
[326940989,1715626234744,-196.60817,0.00012357,2]
[326940992,1715626234754,-585.70848,0.00012357,2]
[326940994,1715626234763,-151.78,0.00012475,2]
[326940996,1715626234772,-939.43109624,0.00012511,2]
[326940997,1715626234785,-483.38441344,0.00012511,2]
[326940998,1715626234797,-613.788995,0.00012511,2]
[326940999,1715626234808,-1242.11305832,0.00012511,2]
[326941000,1715626234817,-1087.966087,0.00012511,2]
[326941001,1715626234826,-585.70848,0.00012511,2]
[326941002,1715626234836,-155.6198,0.00012563,2]
[326941003,1715626234845,-156.04049514,0.00012563,2]
[326941004,1715626234857,-185.42950486,0.00012563,2]
[326941005,1715626234866,-499.99,0.00012563,2]
[326941006,1715626234875,-150.0,0.000126,2]
[326941007,1715626234884,-500.0,0.00012602,2]
[326941008,1715626234894,-500.0,0.00012602,2]
[326941009,1715626234903,-500.0,0.00012602,2]
[326941010,1715626234912,-383.99049514,0.00012602,2]
[326941087,1715626238199,-116.00950486,0.00012602,2]
[326941091,1715626238208,-303.0,0.00012602,2]
[326941094,1715626238218,-1993.85,0.00012602,2]
[326941097,1715626238227,-189.51787,0.00012666,2]
[326941100,1715626238237,-3278.717563,0.00012666,2]
[326941103,1715626238253,-1087.966087,0.00012666,2]
[326941105,1715626238262,-196.60817,0.00012666,2]
[326941108,1715626238271,-585.70848,0.00012666,2]
[326941111,1715626238280,-702.78,0.000127,2]
[326941114,1715626238290,-150.0,0.000127,2]
[326941117,1715626238300,-351.48,0.000127,2]
[326941119,1715626238310,-351.48,0.000127,2]
[326941121,1715626238319,-150.0,0.000127,2]
[326941123,1715626238330,-348.21,0.000127,2]
[326941125,1715626238339,-150.0,0.000127,2]
[326941127,1715626238348,-150.0,0.000127,2]
[326941129,1715626238358,-1138.32713034,0.0001274,2]
[326941131,1715626238368,-909.1344158,0.0001274,2]
[326941133,1715626238377,-155.6198,0.00012769,2]
[326941135,1715626238386,-151.35,0.00012783,2]
[326941137,1715626238396,-288.0,0.00012783,2]
[326941139,1715626238405,-5748.0,0.00012783,2]
[326941141,1715626238414,-193.018,0.00012783,2]
[326941143,1715626238424,-476794.74966675,0.000128,2]
[326941145,1715626238434,-3278.717563,0.0001282,2]
[326941147,1715626238443,-1087.966087,0.0001282,2]
[326941149,1715626238452,-585.70848,0.0001282,2]
[326941151,1715626238462,-157798.18441622,0.0001285,6]
[326941163,1715626238471,-26753.545143,0.0001287,2]
[326941165,1715626238694,-301.40994899,0.00012876,2]
[326941167,1715626238704,-516.01771826,0.00012876,2]
[326941169,1715626238714,-510.89355173,0.00012876,2]
[326941171,1715626238724,-520.43015918,0.00012876,2]
[326941173,1715626238734,-504.45538581,0.00012876,2]
[326941175,1715626238743,-764.00198268,0.0001288,2]
[326941177,1715626238752,-200.0,0.00012896,2]
[326941179,1715626238761,-1000.0,0.00012896,2]
[326941181,1715626238770,-500.0,0.00012896,2]
[326941183,1715626238780,-1754.67365016,0.00012899,2]
[326941185,1715626238789,-1754.67365014,0.000129,2]
[326941187,1715626238799,-1754.67365014,0.000129,2]
[326941189,1715626238811,-300.0,0.00012916,2]
[326941191,1715626238819,-2100.0,0.00012916,2]
[326941193,1715626238828,-189.51787,0.00012975,2]
[326941195,1715626238837,-3278.717563,0.00012975,2]
[326941197,1715626238846,-1087.966087,0.00012975,2]
[326941199,1715626238856,-196.60817,0.00012975,2]
[326941201,1715626238865,-585.70848,0.00012975,2]
[326941203,1715626238874,-155.6198,0.00012975,2]
[326941205,1715626238884,-151.02,0.00012989,2]
[326941206,1715626238894,-82597.06639048,0.0001299,2]
[326941207,1715626238903,-964.1866667,0.00012991,2]
[326941208,1715626238913,-765.84,0.00012991,2]
[326941209,1715626238922,-567.4933333,0.00012991,2]
[326941210,1715626238932,-369.1466666,0.00012991,2]
[326941211,1715626238942,-170.8,0.00012991,2]
[326941212,1715626238950,-1162.5333334,0.00012996,2]
[326941213,1715626238961,-238.14069985,0.00012997,2]
[326941214,1715626238970,-265.84118552,0.00012997,2]
[326941215,1715626238980,-1025.34346523,0.00012997,2]
[326941216,1715626238989,-4271.31667855,0.00012997,2]
[326941217,1715626238999,-155.1587554,0.00012997,2]
[326941218,1715626239008,-405.3612315,0.00012997,2]
[326941219,1715626239018,-408.98464469,0.00012997,2]
[326941220,1715626239028,-4171.335319,0.00012997,2]
[326941221,1715626239037,-500.0,0.00012998,2]
[326941222,1715626239047,-588.72607669,0.00012998,2]
[326941223,1715626239059,-302.95044686,0.00012998,2]
[326941224,1715626239069,-373470.48814355,0.00012999,2]
[326941225,1715626239083,-85273.92545862,0.00012999,2]
[326941229,1715626240277,-1421.89673995,0.00012999,2]
[326941230,1715626240289,-735.985,0.00012999,2]
[326941231,1715626240649,-4544.30824807,0.00012999,2]
[326941234,1715626240662,-3245.01667912,0.00012999,2]
[326941244,1715626242998,-1078.79243425,0.00012999,2]
[326941246,1715626243034,-346.55454544,0.00012999,2]
[326941248,1715626243046,-3108.72869692,0.00012999,2]
[326941257,1715626243786,-100003.55513725,0.00012999,2]
[326941258,1715626243798,-1217701.98767374,0.00012999,2]
[326941267,1715626246051,-654.74209631,0.00012999,2]
[326941298,1715626390997,170.06471965,9.749e-05,2]
[326941299,1715626462380,7510.54701635,9.749e-05,2]
[326941300,1715626482392,7506.20849129,9.749e-05,2]
[326941301,1715626492351,1376.42653566,9.749e-05,2]
[326941302,1715626511529,457692.49082555,9.749e-05,2]
[326941303,1715626511556,89331.1586807,9.749e-05,2]
[326941304,1715626514345,1376.42653566,9.749e-05,2]
[326941305,1715626527460,147573.40608761,9.749e-05,2]
[326941307,1715626532334,1376.42653566,9.749e-05,2]
[326941309,1715626543815,367.12962331,9.749e-05,2]
[326941310,1715626547450,547023.64950626,9.749e-05,2]
[326941311,1715626552495,1376.42653566,9.749e-05,2]
[326941312,1715626553820,345.53864733,9.749e-05,2]
[326941313,1715626554104,399.9707357,9.749e-05,2]
[326941314,1715626555991,155.0,9.749e-05,2]
[326941315,1715626557039,173.32783501,9.749e-05,2]
[326941316,1715626567847,345.53864733,9.749e-05,2]
[326941317,1715626571728,366.35110197,9.749e-05,2]
[326941318,1715626576352,1376.42653566,9.749e-05,2]
[326941319,1715626577454,112421.1244563,9.749e-05,2]
[326941320,1715626589928,194.10256223,9.749e-05,2]
[326941321,1715626592356,335.05500503,9.749e-05,2]
[326941322,1715626595209,173.36283587,9.749e-05,2]
[326941323,1715626599720,397154.99184609,9.749e-05,2]
[326941324,1715626603742,366.35110197,9.749e-05,2]
[326941325,1715626606050,187.26123827,9.749e-05,2]
[326941326,1715626611053,173.36283587,9.749e-05,2]
[326941327,1715626614367,1377.02368436,9.749e-05,2]
[326941328,1715626619730,334.71339607,9.749e-05,2]
[326941329,1715626632368,1377.02368436,9.749e-05,2]